bitfinex/quotes_BTCUSD_20251031
["timestamp","ask_amount","ask_price","bid_price","bid_amount"]
[1761921057581,0.01137206,109810.0,109800.0,0.02992564]
[1761921057787,2.0,109810.0,109800.0,0.212075]
[1761921058200,2.0,109820.0,109810.0,0.18213277]
[1761921058406,2.0,109820.0,109800.0,0.25440496]
[1761921058644,2.01124404,109820.0,109810.0,0.18213277]
[1761921058855,0.01124404,109820.0,109810.0,0.18213277]
[1761921059064,2.0,109820.0,109800.0,0.26151242]
[1761921059281,2.0,109820.0,109800.0,0.22118246]
[1761921059724,2.02563577,109820.0,109810.0,0.18213277]
[1761921059990,0.02563577,109820.0,109800.0,0.22118246]
[1761921060198,0.02563577,109820.0,109810.0,0.18213277]
[1761921060620,0.02563577,109820.0,109800.0,0.22118246]
[1761921061080,0.02563577,109820.0,109810.0,0.0015531]
[1761921063466,2.96527065,109820.0,109810.0,0.0015531]
[1761921063925,2.96627065,109820.0,109810.0,0.0015531]
[1761921064148,3.00145293,109820.0,109810.0,0.0015531]
[1761921064384,2.81933674,109820.0,109810.0,0.0015531]
[1761921064626,2.06681805,109820.0,109810.0,0.0015531]
[1761921064884,2.24893424,109820.0,109810.0,0.0015531]
[1761921065108,2.81933674,109820.0,109810.0,0.0015531]
[1761921065314,3.00145293,109820.0,109810.0,0.0015531]
[1761921065519,3.00245293,109820.0,109810.0,0.0015531]
[1761921065722,3.00145293,109820.0,109810.0,0.0015531]
[1761921065927,2.06681805,109820.0,109810.0,0.0015531]
[1761921066132,3.00145293,109820.0,109810.0,0.0015531]
[1761921066560,3.34145293,109820.0,109810.0,0.0015531]
[1761921066960,2.18313277,109810.0,109800.0,0.02992564]
[1761921067225,3.00892323,109810.0,109800.0,0.00255328]
[1761921067413,3.34892323,109810.0,109800.0,0.00255328]
[1761921067640,2.75251869,109780.0,109770.0,0.0004]
[1761921067829,2.93470123,109780.0,109770.0,0.00048797]
[1761921068046,2.0,109780.0,109770.0,0.00048797]
[1761921068475,2.0,109780.0,109770.0,0.18268711]
[1761921069372,2.0,109800.0,109780.0,0.19128919]
[1761921069611,2.0,109800.0,109770.0,0.19179706]
[1761921069836,2.0,109800.0,109780.0,0.18218219]
[1761921070091,2.0,109800.0,109780.0,0.18218109]
[1761921070536,2.18214979,109800.0,109770.0,0.19179706]
[1761921070745,2.0,109800.0,109770.0,0.19579654]
[1761921070963,0.18216644,109790.0,109770.0,0.00448797]
[1761921071182,2.18218254,109780.0,109770.0,0.00048797]
[1761921071382,0.93470123,109780.0,109770.0,0.00048797]
[1761921071579,0.93570123,109780.0,109770.0,0.00048797]
[1761921071834,2.18218254,109780.0,109770.0,0.00048797]
[1761921072049,0.18215027,109800.0,109770.0,0.00048797]
[1761921072269,2.0,109780.0,109770.0,0.00448797]
[1761921072936,2.0,109780.0,109770.0,0.00548797]
[1761921073358,2.0,109780.0,109770.0,0.00637606]
[1761921073570,0.01428944,109780.0,109770.0,0.1885752]
[1761921073967,0.01428944,109780.0,109770.0,0.1845752]
[1761921074186,0.01428944,109780.0,109770.0,0.00237606]
[1761921074821,0.19647198,109780.0,109770.0,0.00237606]
[1761921075037,0.19747198,109780.0,109770.0,0.00637606]
[1761921075270,0.01428944,109780.0,109770.0,0.00637606]
[1761921076072,0.19647198,109780.0,109770.0,0.00637606]
[1761921076301,0.01428944,109780.0,109770.0,0.00637606]
[1761921076514,0.04137894,109780.0,109770.0,0.00637606]
[1761921076717,0.22356148,109780.0,109770.0,0.00637606]
[1761921077474,0.22456148,109780.0,109770.0,0.00637606]
[1761921077876,0.19747198,109780.0,109770.0,0.00637606]
[1761921078071,0.01428944,109780.0,109770.0,0.00637606]
[1761921078286,0.04137894,109780.0,109770.0,0.00637606]
[1761921078524,0.22356148,109780.0,109770.0,0.00637606]
[1761921078725,0.04137894,109780.0,109770.0,0.00637606]
[1761921079257,0.22356148,109780.0,109770.0,0.00637606]
[1761921079803,0.04137894,109780.0,109770.0,0.00637606]
[1761921080639,0.19647198,109780.0,109770.0,0.00637606]
[1761921080868,0.02857802,109780.0,109770.0,0.00637606]
[1761921081076,0.21076056,109780.0,109770.0,0.00637606]
[1761921081281,0.93470123,109780.0,109770.0,0.00637606]
[1761921081488,2.0,109780.0,109770.0,0.00637606]
[1761921081900,2.0,109780.0,109770.0,0.1885752]
[1761921082307,2.0,109780.0,109770.0,0.22656535]
[1761921082508,2.0,109790.0,109770.0,0.22656535]
[1761921082706,2.0,109790.0,109770.0,0.18768711]
[1761921083375,0.93468571,109790.0,109770.0,0.00148797]
[1761921083581,2.18218254,109780.0,109770.0,0.00148797]
[1761921083788,0.18218254,109780.0,109770.0,0.00248797]
[1761921083996,2.0,109780.0,109770.0,0.00248797]
[1761921084206,2.0,109780.0,109770.0,0.18468711]
[1761921084424,2.0,109780.0,109770.0,0.18368711]
[1761921084632,2.0,109810.0,109780.0,0.18218254]
[1761921084834,2.75251869,109810.0,109790.0,0.1821638]
[1761921085047,2.0,109810.0,109790.0,0.1821638]
[1761921085927,0.01635128,109820.0,109800.0,0.18214936]
[1761921086150,0.01635128,109820.0,109810.0,0.18213277]
[1761921086579,0.003,109810.0,109800.0,0.18214936]
[1761921086783,0.003,109810.0,109790.0,0.19127209]
[1761921087020,2.0,109800.0,109790.0,0.18216595]
[1761921087239,2.0,109800.0,109770.0,0.19170909]
[1761921087240,2.75251869,109800.0,109770.0,0.19170909]
[1761921087448,0.75251869,109810.0,109790.0,8.797e-05]
[1761921087694,2.0,109800.0,109790.0,8.797e-05]
[1761921088156,2.0,109810.0,109790.0,0.18225392]
[1761921088376,2.75251869,109810.0,109790.0,0.18425392]
[1761921088559,2.0,109800.0,109790.0,0.00208797]
[1761921088818,2.0,109810.0,109790.0,0.18425392]
[1761921089083,2.0,109800.0,109790.0,0.18425392]
[1761921089264,0.78315735,109820.0,109800.0,0.18214036]
[1761921089265,0.001,109810.0,109800.0,0.18214036]
[1761921089731,0.42417909,109820.0,109800.0,0.18214036]
[1761921089942,0.08417909,109820.0,109810.0,0.18213277]
[1761921090188,0.01635128,109820.0,109810.0,0.18213277]
[1761921090356,0.01635128,109820.0,109810.0,0.17913277]
[1761921090596,0.005,109820.0,109810.0,0.17813277]
[1761921091050,0.01095455,109820.0,109810.0,0.18213277]
[1761921091272,0.01095455,109820.0,109810.0,1.31498306]
[1761921092174,0.01195455,109820.0,109810.0,0.56246437]
[1761921092389,0.00495455,109820.0,109810.0,0.52213277]
[1761921092606,0.00495455,109820.0,109810.0,0.52413277]
[1761921092839,0.00595455,109820.0,109810.0,0.52413277]
[1761921093063,0.00595455,109820.0,109810.0,0.52213277]
[1761921093271,0.00495455,109820.0,109810.0,0.59846437]
[1761921093479,0.00495455,109820.0,109810.0,0.60746437]
[1761921093694,0.00495455,109820.0,109810.0,1.36098306]
[1761921094142,0.00495455,109820.0,109810.0,0.60746437]
[1761921094977,0.00495455,109820.0,109810.0,1.35998306]
[1761921095878,0.00495455,109820.0,109810.0,0.60746437]
[1761921096307,0.00495455,109820.0,109810.0,0.19413277]
[1761921097206,0.00495455,109820.0,109810.0,0.18513277]
[1761921098051,0.00495455,109820.0,109810.0,0.18213277]
[1761921098462,0.00495455,109820.0,109810.0,0.19013277]
[1761921098691,0.34495455,109820.0,109810.0,0.008]
[1761921098903,2.0,109820.0,109810.0,0.008]
[1761921099115,2.0,109820.0,109800.0,0.02926486]
[1761921099360,2.0,109820.0,109810.0,0.004]
[1761921099569,2.0,109830.0,109810.0,0.52713277]
[1761921099774,2.0,109840.0,109820.0,0.18211567]
[1761921100213,2.18208386,109840.0,109810.0,0.5352394]
[1761921100420,2.0,109830.0,109810.0,0.60681537]
[1761921100850,2.0,109830.0,109820.0,0.18211619]
[1761921101065,2.0,109840.0,109830.0,0.1820996]
[1761921101494,0.12137698,109850.0,109840.0,0.18208302]
[1761921101495,0.01555568,109850.0,109840.0,0.18208302]
[1761921101706,0.01555568,109850.0,109840.0,0.18108302]
[1761921101974,0.01555568,109850.0,109840.0,0.18008302]
[1761921102189,0.01555568,109850.0,109830.0,0.5220996]
[1761921102399,0.01603728,109850.0,109830.0,0.56249148]
[1761921102614,2.001,109840.0,109830.0,0.34]
[1761921102840,0.001,109840.0,109820.0,0.34]
[1761921103064,2.0,109840.0,109820.0,0.53121842]
[1761921103532,2.0,109840.0,109830.0,0.1820996]
[1761921103715,2.0,109840.0,109820.0,0.53121842]
[1761921103957,2.0,109840.0,109830.0,0.1820996]
[1761921105266,0.03031776,109850.0,109840.0,0.18208302]
[1761921105474,0.01603728,109850.0,109840.0,0.20029132]
[1761921105679,0.00175198,109850.0,109840.0,0.20029132]
[1761921105867,0.00175198,109850.0,109840.0,0.18208302]
[1761921106104,0.00175198,109850.0,109840.0,0.27190203]
[1761921106495,0.00175198,109850.0,109840.0,0.18208302]
[1761921107339,0.00175198,109850.0,109840.0,0.19448663]
[1761921107548,0.00175198,109850.0,109840.0,0.53448663]
[1761921107756,0.00175198,109850.0,109840.0,0.52408302]
[1761921107961,0.00175198,109850.0,109840.0,0.52508302]
[1761921108175,0.00175198,109850.0,109840.0,1.36742072]
[1761921108428,0.00175198,109850.0,109840.0,0.61490203]
[1761921109039,0.00175198,109850.0,109840.0,1.36742072]
[1761921112327,0.00175198,109850.0,109840.0,0.52508302]
[1761921112541,0.00175198,109850.0,109840.0,0.18508302]
[1761921116639,0.00175198,109850.0,109840.0,0.33438302]
[1761921117763,0.00175198,109850.0,109840.0,1.42690171]
[1761921117947,0.00175198,109850.0,109840.0,1.42790171]
[1761921118177,0.00175198,109850.0,109840.0,1.51772072]
[1761921119286,1e-08,109850.0,109840.0,1.51672072]
[1761921119496,1e-08,109850.0,109840.0,1.73631199]
[1761921119709,1e-08,109850.0,109840.0,1.73531199]
[1761921119927,1e-08,109850.0,109840.0,1.24775701]
[1761921120170,1e-08,109850.0,109840.0,1.25051401]
[1761921120791,1e-08,109850.0,109840.0,1.25151401]
[1761921121032,0.00100001,109850.0,109840.0,1.25851401]
[1761921121242,0.00100001,109850.0,109840.0,1.26251401]
[1761921122364,0.00100001,109850.0,109840.0,0.77695903]
[1761921122632,0.00100001,109850.0,109840.0,1.74706899]
[1761921122899,0.00100001,109850.0,109840.0,1.63495127]
[1761921123107,1e-08,109850.0,109840.0,1.63495127]
[1761921123560,1e-08,109850.0,109840.0,1.11221401]
[1761921123782,1e-08,109850.0,109840.0,0.28665903]
[1761921124023,1e-08,109850.0,109840.0,0.77221401]
[1761921124244,1e-08,109850.0,109840.0,1.11221401]
[1761921124698,1e-08,109850.0,109840.0,0.015]
[1761921124881,2.0,109850.0,109840.0,0.18608302]
[1761921125092,2.0,109850.0,109840.0,0.004]
[1761921125581,2.0,109860.0,109840.0,0.18608302]
[1761921126051,2.0,109860.0,109840.0,0.18208302]
[1761921126254,2.0,109860.0,109840.0,0.22841178]
[1761921126483,2.0,109860.0,109840.0,0.23141178]
[1761921126696,2.0,109850.0,109840.0,0.18208302]
[1761921126906,2.0,109860.0,109840.0,0.18408302]
[1761921127535,2.0,109860.0,109840.0,0.18308224]
[1761921127985,2.0,109860.0,109840.0,0.18708224]
[1761921128209,2.0,109860.0,109840.0,0.22491092]
[1761921128675,2.0,109880.0,109850.0,0.20937641]
[1761921128928,2.00014444,109880.0,109860.0,0.18204173]
[1761921129195,0.00014444,109880.0,109870.0,0.18203331]
[1761921129412,0.00014444,109880.0,109870.0,1.02579162]
[1761921129656,0.00014444,109880.0,109870.0,1.0974073]
[1761921130105,0.00114444,109880.0,109870.0,1.0974073]
[1761921130314,0.00014444,109880.0,109870.0,1.0974073]
[1761921130488,0.00014444,109880.0,109870.0,0.61185232]
[1761921130734,0.00014444,109880.0,109870.0,0.61285232]
[1761921130912,0.00014444,109880.0,109870.0,0.61185232]
[1761921131252,0.00014444,109880.0,109870.0,0.61885232]
[1761921131679,0.00014444,109880.0,109870.0,0.62085232]
[1761921132959,0.00014444,109880.0,109870.0,0.61885232]
[1761921133174,0.00014444,109880.0,109870.0,0.61185232]
[1761921133385,0.00014444,109880.0,109870.0,0.61285232]
[1761921134298,0.00014444,109880.0,109870.0,0.61585232]
[1761921134527,0.00014444,109880.0,109870.0,1.1014073]
[1761921134949,0.00080967,109880.0,109870.0,1.1014073]
[1761921136072,0.00080967,109880.0,109870.0,0.52603331]
[1761921136303,0.00080967,109880.0,109870.0,0.004]
[1761921136758,2.00080967,109880.0,109870.0,0.004]
[1761921137189,2.0,109870.0,109860.0,0.18204672]
[1761921137396,0.00214444,109880.0,109870.0,0.18203331]
[1761921137613,0.00214444,109880.0,109870.0,0.21844131]
[1761921137852,0.00080967,109880.0,109870.0,0.21844131]
[1761921138904,0.00080967,109880.0,109870.0,0.036408]
[1761921139123,0.00080967,109880.0,109870.0,0.18203331]
[1761921140053,0.00080967,109880.0,109860.0,0.18204672]
[1761921140266,0.00014444,109880.0,109860.0,0.18204672]
[1761921140743,0.00014444,109880.0,109870.0,0.18203331]
[1761921141171,0.00014444,109880.0,109860.0,0.18204672]
[1761921141379,0.00014444,109880.0,109860.0,0.21936837]
[1761921141811,2.98569942,109880.0,109860.0,0.18204928]
[1761921142019,2.0,109870.0,109850.0,0.19116977]
[1761921143128,2.0,109870.0,109860.0,0.18204988]
[1761921143551,0.00014444,109880.0,109870.0,0.18203331]
[1761921143764,0.00014444,109880.0,109870.0,0.18003331]
[1761921143985,0.00014444,109880.0,109860.0,0.18204988]
[1761921144449,0.00014444,109880.0,109860.0,0.21937185]
[1761921145090,0.1821613,109880.0,109860.0,0.03732197]
[1761921145294,2.0,109870.0,109860.0,0.21937185]
[1761921145535,2.00044353,109870.0,109860.0,0.22037185]
[1761921145745,0.00044353,109870.0,109860.0,0.03832197]
[1761921145954,0.00044353,109870.0,109860.0,0.18204988]
[1761921146388,0.00044353,109870.0,109860.0,0.18304988]
[1761921146808,0.00044353,109870.0,109850.0,0.19116977]
[1761921147058,2.0,109870.0,109860.0,0.003]
[1761921147269,2.0,109870.0,109860.0,0.004]
[1761921148366,2.0,109870.0,109860.0,0.001]
[1761921148581,0.001,109870.0,109850.0,0.19116977]
[1761921148937,2.0,109870.0,109850.0,0.19116977]
[1761921149352,2.0,109870.0,109860.0,0.001]
[1761921149553,2.0,109870.0,109860.0,0.18304988]
[1761921149754,2.0,109870.0,109850.0,0.19116977]
[1761921150169,1.80903815,109870.0,109850.0,0.23327784]
[1761921150373,2.0,109870.0,109850.0,0.23327784]
[1761921150590,2.0,109870.0,109850.0,0.19216977]
[1761921151227,2.0,109870.0,109860.0,0.18204988]
[1761921151711,2.50014444,109880.0,109870.0,0.18203331]
[1761921151924,0.00014444,109880.0,109870.0,0.18203331]
[1761921152153,0.00014444,109880.0,109870.0,0.23664496]
[1761921152376,0.00014444,109880.0,109870.0,0.21744163]
[1761921153013,0.00114444,109880.0,109870.0,0.21744163]
[1761921153247,0.00114444,109880.0,109870.0,0.70299661]
[1761921153480,0.00114444,109880.0,109870.0,1.23395761]
[1761921153481,0.00014444,109880.0,109870.0,1.23395761]
[1761921153682,0.00014444,109880.0,109870.0,1.23495761]
[1761921154325,0.00014444,109880.0,109870.0,1.23595761]
[1761921154732,0.00014444,109880.0,109870.0,1.23495761]
[1761921154992,0.00014444,109880.0,109870.0,1.23895761]
[1761921155419,0.00014444,109880.0,109870.0,1.23495761]
[1761921155627,0.00014444,109880.0,109870.0,1.24195761]
[1761921155948,0.00014444,109880.0,109870.0,1.24595761]
[1761921156135,0.00014444,109880.0,109870.0,1.23695761]
[1761921156415,0.00014444,109880.0,109870.0,1.24695761]
[1761921156640,0.0002,109920.0,109910.0,0.18196706]
[1761921156839,0.00034482,109920.0,109910.0,0.26691763]
[1761921157091,0.00034482,109920.0,109910.0,0.18196706]
[1761921157332,0.01094654,109920.0,109910.0,0.18196706]
[1761921157564,0.00034482,109920.0,109890.0,0.6766386]
[1761921157773,0.00066523,109880.0,109870.0,0.22741184]
[1761921157991,2.0,109900.0,109890.0,0.18199959]
[1761921158211,2.0,109900.0,109890.0,0.21930979]
[1761921158661,2.0,109900.0,109890.0,0.18200018]
[1761921159260,2.0,109900.0,109880.0,0.19110245]
[1761921159483,2.0,109900.0,109880.0,0.18201594]
[1761921159484,2.48555498,109900.0,109880.0,0.18201594]
[1761921159693,0.48555498,109900.0,109880.0,0.18201621]
[1761921159973,0.66753871,109900.0,109880.0,0.18201621]
[1761921160203,2.0,109890.0,109880.0,0.18201621]
[1761921160447,2.0,109890.0,109880.0,0.22296918]
[1761921160679,2.0,109900.0,109890.0,0.18199247]
[1761921161138,2.0,109910.0,109900.0,0.18198362]
[1761921161570,2.0,109910.0,109890.0,0.18199247]
[1761921161998,0.001,109900.0,109890.0,0.18199247]
[1761921162215,0.00114482,109900.0,109890.0,0.18199247]
[1761921162432,0.00014482,109900.0,109890.0,0.18199247]
[1761921162664,0.00014482,109900.0,109880.0,0.23207001]
[1761921162884,0.00014482,109900.0,109890.0,0.001]
[1761921163107,0.00125333,109900.0,109890.0,0.001]
[1761921163552,0.66879193,109900.0,109890.0,0.001]
[1761921163805,3.04497421,109900.0,109890.0,0.001]
[1761921164021,3.04497421,109900.0,109890.0,0.002]
[1761921164245,3.04497421,109900.0,109890.0,0.001]
[1761921164466,3.04497421,109900.0,109890.0,0.005]
[1761921164905,3.04497421,109900.0,109870.0,0.19113342]
[1761921165118,0.48555498,109890.0,109870.0,0.19113342]
[1761921165337,1.0448657,109900.0,109870.0,0.19113342]
[1761921165553,2.0,109890.0,109870.0,0.19113342]
[1761921167367,2.0,109890.0,109870.0,0.19213342]
[1761921167747,2.0,109890.0,109880.0,0.18201674]
[1761921168606,2.0,109890.0,109870.0,0.19113342]
[1761921168807,2.0,109890.0,109880.0,0.18201674]
[1761921169180,2.0,109890.0,109880.0,0.18301674]
[1761921170225,0.00014482,109900.0,109880.0,0.18201674]
[1761921170440,0.00014482,109900.0,109890.0,0.18200018]
[1761921171820,0.00014482,109900.0,109880.0,0.18201674]
[1761921172028,0.00114482,109900.0,109880.0,0.27171011]
[1761921172233,0.00114482,109900.0,109880.0,0.18201674]
[1761921172439,0.00114482,109900.0,109890.0,0.18200018]
[1761921172658,0.00114482,109900.0,109880.0,0.18201674]
[1761921172957,0.00114482,109900.0,109890.0,0.18200018]
[1761921173092,0.00014482,109900.0,109890.0,0.18200018]
[1761921173313,0.00114482,109900.0,109890.0,0.18200018]
[1761921173967,0.00014482,109900.0,109890.0,0.18200018]
[1761921174137,0.00114482,109900.0,109890.0,0.18200018]
[1761921174748,0.00014482,109900.0,109890.0,0.18200018]
[1761921174945,0.00114482,109900.0,109890.0,0.18200018]
[1761921175147,0.18312905,109900.0,109870.0,0.86421698]
[1761921175348,2.0,109890.0,109880.0,0.18201674]
[1761921175903,0.00088689,109890.0,109870.0,0.34042974]
[1761921176026,2.0,109890.0,109870.0,0.21155987]
[1761921176227,0.66768521,109900.0,109870.0,0.33133323]
[1761921176478,2.0,109890.0,109870.0,0.33133323]
[1761921176649,2.0,109890.0,109870.0,0.1493]
[1761921176858,0.66755693,109890.0,109870.0,0.1493]
[1761921177062,0.66755556,109890.0,109870.0,0.33133155]
[1761921177260,0.66755556,109890.0,109870.0,0.1503]
[1761921177514,0.48555498,109890.0,109870.0,0.33233298]
[1761921177904,2.0,109890.0,109870.0,0.34143464]
[1761921178624,0.18200161,109890.0,109870.0,0.17188808]
[1761921178883,0.18200161,109890.0,109870.0,0.1503]
[1761921179089,0.66768521,109900.0,109870.0,0.33233311]
[1761921179300,2.0,109890.0,109870.0,0.33233311]
[1761921180147,2.0,109890.0,109870.0,0.33133311]
[1761921180355,2.0,109890.0,109880.0,0.18201674]
[1761921180974,2.0,109890.0,109870.0,0.18203311]
[1761921181184,2.0,109890.0,109870.0,0.22035166]
[1761921181444,0.00066523,109880.0,109870.0,0.18303311]
[1761921181645,0.00066523,109880.0,109870.0,0.18203311]
[1761921182288,0.00066523,109880.0,109870.0,0.9516891]
[1761921182538,0.00066523,109880.0,109870.0,0.93348577]
[1761921182807,0.18193668,109930.0,109900.0,0.18197295]
[1761921183050,0.94246633,109940.0,109910.0,0.18196706]
[1761921183051,0.01041834,109920.0,109910.0,0.18196706]
[1761921183260,2.0,109940.0,109920.0,0.18194971]
[1761921183476,2.00014479,109940.0,109920.0,0.21925122]
[1761921183728,0.00014479,109940.0,109930.0,0.18193395]
[1761921184364,0.00314479,109940.0,109930.0,0.93338661]
[1761921184573,0.00314479,109940.0,109930.0,0.18193395]
[1761921184777,0.00314479,109940.0,109930.0,0.27175296]
[1761921184982,0.00314479,109940.0,109930.0,0.18193395]
[1761921185420,0.00314479,109940.0,109930.0,0.20012734]
[1761921185832,0.00014479,109940.0,109930.0,0.20012734]
[1761921186044,0.00014479,109940.0,109930.0,0.20212734]
[1761921186256,0.00014479,109940.0,109930.0,0.18393395]
[1761921186481,0.00014479,109940.0,109930.0,0.27375296]
[1761921186888,0.00014479,109940.0,109930.0,0.27875296]
[1761921187515,0.00014479,109940.0,109930.0,1.37020562]
[1761921188230,0.00014479,109940.0,109930.0,0.61875296]
[1761921188432,0.00014479,109940.0,109930.0,0.18893395]
[1761921189318,0.00014479,109940.0,109930.0,0.18193395]
[1761921189520,0.00014479,109940.0,109930.0,0.20012734]
[1761921189947,0.00014479,109940.0,109930.0,0.95158]
[1761921190178,0.00014479,109940.0,109930.0,0.93338661]
[1761921190362,0.00014479,109940.0,109930.0,1.36620562]
[1761921190798,0.00014479,109940.0,109930.0,0.61475296]
[1761921191418,0.00014479,109940.0,109930.0,0.27575296]
[1761921191682,0.00014479,109940.0,109930.0,0.18593395]
[1761921191893,0.00014479,109940.0,109930.0,0.18293395]
[1761921192073,0.00014479,109940.0,109930.0,0.18693395]
[1761921192569,0.00014479,109940.0,109930.0,0.18193395]
[1761921192817,0.00014479,109940.0,109930.0,0.95158]
[1761921193043,0.00014479,109940.0,109930.0,0.004]
[1761921193266,3.27351485,109940.0,109930.0,0.004]
[1761921193479,3.30969713,109940.0,109930.0,0.001]
[1761921193694,3.33958589,109940.0,109930.0,0.004]
[1761921194153,3.34091544,109940.0,109930.0,0.004]
[1761921194400,3.31202668,109940.0,109930.0,0.004]
[1761921194614,3.31102668,109940.0,109930.0,0.003]
[1761921194856,3.31202668,109940.0,109930.0,0.004]
[1761921195082,3.31202668,109940.0,109890.0,0.18199958]
[1761921195083,0.18196417,109920.0,109890.0,0.18199958]
[1761921195313,2.0,109910.0,109890.0,0.18199958]
[1761921195557,2.0,109910.0,109890.0,0.2193098]
[1761921196168,2.18196728,109910.0,109890.0,0.03731022]
[1761921196280,2.0,109910.0,109890.0,0.2193104]
[1761921196689,2.0,109910.0,109900.0,0.18198362]
[1761921196883,0.001,109910.0,109900.0,0.18198362]
[1761921197515,0.01156575,109910.0,109900.0,0.18198362]
[1761921197710,0.01156575,109910.0,109890.0,0.2193104]
[1761921198129,0.01056575,109910.0,109890.0,0.2193104]
[1761921198339,0.18195083,109920.0,109890.0,0.2284104]
[1761921198544,0.001,109910.0,109900.0,0.18198362]
[1761921198745,0.001,109910.0,109900.0,0.22302302]
[1761921198978,0.0666008,109930.0,109910.0,0.18195666]
[1761921199229,0.0666008,109930.0,109920.0,0.1819505]
[1761921199230,2.0,109930.0,109920.0,0.1819505]
[1761921199579,0.01027304,109930.0,109920.0,0.1819505]
[1761921199786,0.50014479,109940.0,109930.0,0.18193395]
[1761921199989,0.00014479,109940.0,109930.0,0.18193395]
[1761921200186,0.00014479,109940.0,109930.0,0.2173224]
[1761921201179,0.00014479,109940.0,109930.0,0.03638845]
[1761921201710,0.01597598,109940.0,109930.0,0.2193224]
[1761921201887,0.01597598,109940.0,109930.0,0.18293395]
[1761921202154,0.01197598,109940.0,109930.0,0.18293395]
[1761921202567,0.01197598,109940.0,109930.0,0.18393395]
[1761921202986,0.01197598,109940.0,109930.0,0.002]
[1761921203208,0.76342864,109940.0,109930.0,0.002]
[1761921204917,0.01197598,109940.0,109930.0,0.002]
[1761921205487,2.94534604,109940.0,109930.0,0.002]
[1761921205688,2.01197598,109940.0,109930.0,0.002]
[1761921205900,2.01197598,109940.0,109930.0,0.18393395]
[1761921206109,0.00147434,109940.0,109930.0,0.22052239]
[1761921213298,0.00147434,109940.0,109930.0,0.002]
[1761921213299,2.50147434,109940.0,109930.0,0.002]
[1761921213534,0.00147434,109940.0,109930.0,0.18393395]
[1761921213904,0.00147434,109940.0,109930.0,0.18293395]
[1761921214467,0.00147434,109940.0,109930.0,0.18193395]
[1761921214671,0.00247434,109940.0,109930.0,0.20012734]
[1761921214874,0.00247434,109940.0,109930.0,0.23833512]
[1761921215082,0.00147434,109940.0,109930.0,0.22014173]
[1761921215520,0.00147434,109940.0,109930.0,0.22114173]
[1761921215904,0.00147434,109940.0,109930.0,0.22214173]
[1761921216102,0.00147434,109940.0,109930.0,0.22114173]
[1761921216470,0.00147434,109940.0,109930.0,0.22214173]
[1761921216672,0.00147434,109940.0,109930.0,0.22014173]
[1761921216874,0.00147434,109940.0,109930.0,0.22114173]
[1761921217309,0.00147434,109940.0,109930.0,0.56014173]
[1761921217535,0.00147434,109940.0,109930.0,0.56114173]
[1761921218127,0.00147434,109940.0,109930.0,1.31259439]
[1761921218313,0.00147434,109940.0,109930.0,1.31159439]
[1761921218520,0.00147434,109940.0,109930.0,0.56014173]
[1761921218729,0.00147434,109940.0,109930.0,0.56314173]
[1761921219133,0.00147434,109940.0,109930.0,0.56414173]
[1761921219543,0.00147434,109940.0,109930.0,0.56314173]
[1761921219751,0.00147434,109940.0,109930.0,0.56014173]
[1761921219956,0.00147434,109940.0,109930.0,0.56214173]
[1761921220102,0.00147434,109940.0,109930.0,0.56614173]
[1761921220504,0.00147434,109940.0,109930.0,0.56214173]
[1761921221192,0.00147434,109940.0,109930.0,0.56814173]
[1761921221845,0.00147434,109940.0,109930.0,0.56914173]
[1761921223929,0.00147434,109940.0,109930.0,0.56814173]
[1761921226001,0.00147434,109940.0,109930.0,0.56214173]
[1761921226214,0.00147434,109940.0,109930.0,0.56514173]
[1761921226553,0.00147434,109940.0,109930.0,0.56214173]
[1761921226989,0.00147434,109940.0,109930.0,0.56814173]
[1761921231556,0.00147434,109940.0,109930.0,1.31959439]
[1761921231782,0.00147434,109940.0,109930.0,0.56814173]
[1761921232799,0.00147434,109940.0,109930.0,1.31959439]
[1761921233004,0.00147434,109940.0,109930.0,1.32059439]
[1761921233206,0.00147434,109940.0,109930.0,0.56914173]
[1761921236241,0.00147434,109940.0,109930.0,0.56814173]
[1761921241477,0.00147434,109940.0,109930.0,0.56914173]
[1761921242357,0.00147434,109940.0,109930.0,1.05411446]
[1761921245986,25.89425534,109940.0,109930.0,1.05411446]
[1761921246752,25.28568028,109940.0,109930.0,1.05311446]
[1761921247136,25.06261353,109940.0,109930.0,1.05411446]
[1761921247832,21.63594063,109940.0,109930.0,1.07208894]
[1761921248046,20.63256264,109940.0,109930.0,1.07308894]
[1761921248280,20.5409248,109940.0,109930.0,1.07308894]
[1761921248498,20.0414688,109940.0,109930.0,1.07308894]
[1761921248933,19.77571541,109940.0,109930.0,1.06508894]
[1761921249115,18.77321627,109940.0,109930.0,1.16407894]
[1761921249380,18.75741584,109940.0,109930.0,1.16407894]
[1761921249595,18.45757458,109940.0,109930.0,1.16407894]
[1761921249802,18.45757458,109940.0,109930.0,1.16107894]
[1761921249803,18.25872707,109940.0,109930.0,1.16107894]
[1761921250012,17.82787122,109940.0,109930.0,1.16107894]
[1761921250247,17.5262566,109940.0,109930.0,1.18657689]
[1761921250469,17.33650486,109940.0,109930.0,1.19157689]
[1761921250685,17.14242992,109940.0,109930.0,1.19157689]
[1761921250898,17.14242992,109940.0,109930.0,1.67054962]
[1761921250899,16.795319,109940.0,109930.0,1.67054962]
[1761921251112,16.56145608,109940.0,109930.0,1.68354962]
[1761921251554,16.17636433,109940.0,109930.0,1.68354962]
[1761921251766,16.12719548,109940.0,109930.0,1.68354962]
[1761921251982,15.91245773,109940.0,109930.0,1.68354962]
[1761921252214,15.49290733,109940.0,109930.0,1.67954962]
[1761921252431,15.25733686,109940.0,109930.0,1.68354962]
[1761921252645,15.25652445,109940.0,109930.0,4.68354962]
[1761921252871,15.02709087,109940.0,109930.0,4.68354962]
[1761921253090,14.86081819,109940.0,109930.0,4.83284962]
[1761921253297,14.65884408,109940.0,109930.0,4.81235167]
[1761921253724,14.41514121,109940.0,109930.0,4.81235167]
[1761921253906,14.08099243,109940.0,109930.0,4.32537894]
[1761921254126,13.77344832,109940.0,109930.0,4.81135167]
[1761921254354,13.77344832,109940.0,109930.0,4.81235167]
[1761921254563,13.50067673,109940.0,109930.0,4.82235166]
[1761921255006,13.25046046,109940.0,109930.0,4.65005167]
[1761921255224,12.87635447,109940.0,109930.0,4.66705166]
[1761921255489,12.6863299,109940.0,109930.0,4.66705166]
[1761921255703,12.54016571,109940.0,109930.0,4.67205166]
[1761921255911,12.3884684,109940.0,109930.0,4.69254961]
[1761921256093,12.05172186,109940.0,109930.0,4.68854962]
[1761921256321,11.90706174,109940.0,109930.0,4.68754961]
[1761921256744,11.65910758,109940.0,109930.0,4.69954961]
[1761921256955,11.49755031,109940.0,109930.0,4.69954961]
[1761921257165,11.28429755,109940.0,109930.0,4.67405166]